Body Name,Document Number,Service,Type of Expenditure,Invoice Date,Supplier Name,Cost to the Council (Amount Exc VAT),Month
EREWASH BOROUGH COUNCIL,221099,Balance Sheet,ICT Works,08/31/20,ADVANCED BUSINESS SOFTWARE & SOLUTIONS LIMITED,22005.27,Sep-20
EREWASH BOROUGH COUNCIL,220737,Balance Sheet,COVID19 Discretionary Business Grants,09/04/20,ALAN LITMAN LTD,10000,Sep-20
EREWASH BOROUGH COUNCIL,220914,Treasury Management and Bank Charges,Allpay/Post Office Charges,08/31/20,ALLPAY LIMITED,1078.01,Sep-20
EREWASH BOROUGH COUNCIL,220432,Street Scene,Repairs and Maintenance,08/20/20,ALLSCREENS NATIONWIDE LTD,228,Sep-20
EREWASH BOROUGH COUNCIL,220372,Household/Residual Waste Collection,Repairs and Maintenance,08/14/20,ALLSCREENS NATIONWIDE LTD,250,Sep-20
EREWASH BOROUGH COUNCIL,220294,Green Space,Materials/Consumables,08/11/20,ALPHA DRAIN SERVICES,360,Sep-20
EREWASH BOROUGH COUNCIL,220926,Insurances - (Corporate matters only),Insurance - General,08/04/20,ALPHATEC SOFTWARE LIMITED,3550.64,Sep-20
EREWASH BOROUGH COUNCIL,221117,Green Space,Materials/Consumables,09/23/20,AMAZON PAYMENTS UK LTD,389,Sep-20
EREWASH BOROUGH COUNCIL,220487,Balance Sheet,Building Works,08/12/20,ANGEL ENVIRONMENTAL LTD T/A 0800 ASBESTOS,1395,Sep-20
EREWASH BOROUGH COUNCIL,221057,ICT Support Services,Office Paper,09/09/20,ANTALIS DOCUMENT SUPPLIES,241,Sep-20
EREWASH BOROUGH COUNCIL,220876,ICT Support Services,Training,08/20/20,ASTUN TECHNOLOGY LTD,850,Sep-20
EREWASH BOROUGH COUNCIL,220773,Infectious Diseases and Food Poisoning,Work In Default,07/13/20,AW LYMN LTD,1512,Sep-20
EREWASH BOROUGH COUNCIL,221137,Parish Council Concurrent Functions,Breadsall - Precept,09/28/20,BREADSALL PARISH COUNCIL,1361,Sep-20
EREWASH BOROUGH COUNCIL,221137,Parish Precepts,Breadsall - Precept,09/28/20,BREADSALL PARISH COUNCIL,3375,Sep-20
EREWASH BOROUGH COUNCIL,221138,Parish Council Concurrent Functions,Breaston - Precept,09/28/20,BREASTON PARISH COUNCIL,11494,Sep-20
EREWASH BOROUGH COUNCIL,221138,Parish Precepts,Breaston - Precept,09/28/20,BREASTON PARISH COUNCIL,12960,Sep-20
EREWASH BOROUGH COUNCIL,220789,ICT Support Services,Telephones,08/22/20,BRITISH TELECOMMUNICATIONS PLC,1640.62,Sep-20
EREWASH BOROUGH COUNCIL,220702,Street Scene,Repairs and Maintenance,08/24/20,BUCHER MUNICIPAL LTD,811.8,Sep-20
EREWASH BOROUGH COUNCIL,220538,Street Scene,Repairs and Maintenance,08/10/20,BUCHER MUNICIPAL LTD,968.54,Sep-20
EREWASH BOROUGH COUNCIL,220779,Occupational Health and Welfare,Occupational Health Service,03/01/20,BUPA HEALTH CLINICS,406.44,Sep-20
EREWASH BOROUGH COUNCIL,220785,Occupational Health and Welfare,Occupational Health Service,09/01/20,BUPA HEALTH CLINICS,406.44,Sep-20
EREWASH BOROUGH COUNCIL,221185,Treasury Management and Bank Charges,Allpay/Post Office Charges,06/16/20,CAPITA,2435.27,Sep-20
EREWASH BOROUGH COUNCIL,221184,Treasury Management and Bank Charges,Allpay/Post Office Charges,05/18/20,CAPITA,2733.24,Sep-20
EREWASH BOROUGH COUNCIL,221186,Treasury Management and Bank Charges,Allpay/Post Office Charges,07/09/20,CAPITA,2942.02,Sep-20
EREWASH BOROUGH COUNCIL,221187,Treasury Management and Bank Charges,Allpay/Post Office Charges,08/14/20,CAPITA,3511.56,Sep-20
EREWASH BOROUGH COUNCIL,220234,ICT Support Services,General Equipment,08/06/20,CCS MEDIA LIMITED,1077.16,Sep-20
EREWASH BOROUGH COUNCIL,220812,Balance Sheet,Fuel Store,08/24/20,CERTAS ENERGY UK LIMITED T/A CARLTON FUELS,26577,Sep-20
EREWASH BOROUGH COUNCIL,220754,Homelessness,Contribution to Shared Service,07/30/20,CHESTERFIELD BOROUGH COUNCIL,20000,Sep-20
EREWASH BOROUGH COUNCIL,220365,Building Control - Fee Earning,Contracted Services,08/05/20,CIVICA UK LIMITED,1950,Sep-20
EREWASH BOROUGH COUNCIL,220818,Revenues and Benefits,Software Licences,09/03/20,CIVICA UK LIMITED,2000,Sep-20
EREWASH BOROUGH COUNCIL,221016,ICT Support Services,Mobile Phones,09/01/20,CLASS AFFINITY PROJECTS LTD,2002.16,Sep-20
EREWASH BOROUGH COUNCIL,220895,Long Service Awards,Long Service Awards,09/11/20,REDACTED PERSONAL DATA,461.85,Sep-20
EREWASH BOROUGH COUNCIL,220371,Household/Residual Waste Collection,Hire Charges,08/12/20,CLOSE BROTHERS VEHICLE HIRE LTD,368,Sep-20
EREWASH BOROUGH COUNCIL,220867,Household/Residual Waste Collection,Hire Charges,07/31/20,CLOSE BROTHERS VEHICLE HIRE LTD,920,Sep-20
EREWASH BOROUGH COUNCIL,220782,HLF Victoria Park Restoration,Consultants Fees,09/03/20,COMMUNITY FIRST PARTNERSHIP LIMITED,2151,Sep-20
EREWASH BOROUGH COUNCIL,220904,Commissioned Projects,Fees Costs and Expenses,09/08/20,COMMUNITY SPORTS TRUST,6667,Sep-20
EREWASH BOROUGH COUNCIL,220869,Kerbside Dry Recycling Collection,Repairs and Maintenance,07/21/20,COOLAIR LOGAN LIMITED,225,Sep-20
EREWASH BOROUGH COUNCIL,220868,Kerbside Dry Recycling Collection,Repairs and Maintenance,07/21/20,COOLAIR LOGAN LIMITED,225,Sep-20
EREWASH BOROUGH COUNCIL,220387,Kerbside Dry Recycling Collection,Repairs and Maintenance,08/18/20,COOLAIR LOGAN LIMITED,225,Sep-20
EREWASH BOROUGH COUNCIL,220871,Street Scene,Repairs and Maintenance,07/30/20,COOLAIR LOGAN LIMITED,225,Sep-20
EREWASH BOROUGH COUNCIL,220386,Green Space,Repairs and Maintenance,08/18/20,COOLAIR LOGAN LIMITED,225,Sep-20
EREWASH BOROUGH COUNCIL,220870,Kerbside Dry Recycling Collection,Repairs and Maintenance,07/30/20,COOLAIR LOGAN LIMITED,225,Sep-20
EREWASH BOROUGH COUNCIL,220557,Green Space,Materials/Consumables,08/19/20,CROMWELL POLYTHENE LTD,686.7,Sep-20
EREWASH BOROUGH COUNCIL,220800,Street Scene,Materials/Consumables,08/27/20,CROMWELL POLYTHENE LTD,1361.32,Sep-20
EREWASH BOROUGH COUNCIL,220722,Civic Transport,Hire Charges,09/01/20,CRUISE-IN-CONTROL LIMITED,413.1,Sep-20
EREWASH BOROUGH COUNCIL,220677,Development Control - Fee Earning,Consultants Fees,05/29/20,CUSHMAN & WAKEFIELD,2750,Sep-20
EREWASH BOROUGH COUNCIL,221139,Parish Precepts,Dale Abbey - Precept,09/28/20,DALE ABBEY PARISH COUNCIL,2195,Sep-20
EREWASH BOROUGH COUNCIL,221139,Parish Council Concurrent Functions,Dale Abbey - Precept,09/28/20,DALE ABBEY PARISH COUNCIL,2392,Sep-20
EREWASH BOROUGH COUNCIL,220329,Green Space,Training,08/13/20,DART LTD,355.5,Sep-20
EREWASH BOROUGH COUNCIL,221174,Household/Residual Waste Collection,Repairs and Maintenance,09/24/20,DENNIS EAGLE LTD,306.98,Sep-20
EREWASH BOROUGH COUNCIL,221170,Household/Residual Waste Collection,Repairs and Maintenance,09/24/20,DENNIS EAGLE LTD,393.37,Sep-20
EREWASH BOROUGH COUNCIL,221080,Household/Residual Waste Collection,Repairs and Maintenance,09/21/20,DENNIS EAGLE LTD,501.89,Sep-20
EREWASH BOROUGH COUNCIL,221090,Household/Residual Waste Collection,Repairs and Maintenance,09/18/20,DENNIS EAGLE LTD,522.16,Sep-20
EREWASH BOROUGH COUNCIL,221176,Trade Waste,Repairs and Maintenance,09/23/20,DENNIS EAGLE LTD,766.06,Sep-20
EREWASH BOROUGH COUNCIL,221169,Kerbside Dry Recycling Collection,Repairs and Maintenance,09/21/20,DENNIS EAGLE LTD,899.38,Sep-20
EREWASH BOROUGH COUNCIL,221079,Trade Waste,Repairs and Maintenance,09/15/20,DENNIS EAGLE LTD,1890.55,Sep-20
EREWASH BOROUGH COUNCIL,221199,Non Domestic Rates Income and Expenditure,NNDR Tariff,09/21/20,DERBY CITY COUNCIL,520564.97,Sep-20
EREWASH BOROUGH COUNCIL,220759,Homelessness,Temporary Accommodation,08/21/20,DERBY GUESTHOUSE LIMITED,240,Sep-20
EREWASH BOROUGH COUNCIL,221074,Balance Sheet,Payroll Collection A/c - Credit Union,09/23/20,DERBYSHIRE COMMUNITY BANK,330,Sep-20
EREWASH BOROUGH COUNCIL,220898,Balance Sheet,Payroll Collection A/c - Purchase Added Years,09/14/20,DERBYSHIRE COUNTY COUNCIL...,362.64,Sep-20
EREWASH BOROUGH COUNCIL,220950,Car Parking,Season Tickets,08/13/20,DERBYSHIRE COUNTY COUNCIL...,11121.37,Sep-20
EREWASH BOROUGH COUNCIL,220898,Balance Sheet,Payroll Collection A/c - Superannuation,09/14/20,DERBYSHIRE COUNTY COUNCIL...,205165.17,Sep-20
EREWASH BOROUGH COUNCIL,220690,Street Scene,Training,08/28/20,DIAMOND DRIVER TRAINING,1300,Sep-20
EREWASH BOROUGH COUNCIL,221140,Parish Council Concurrent Functions,Draycott - Precept,09/28/20,DRAYCOTT PARISH COUNCIL,7543,Sep-20
EREWASH BOROUGH COUNCIL,221140,Parish Precepts,Draycott - Precept,09/28/20,DRAYCOTT PARISH COUNCIL,12123,Sep-20
EREWASH BOROUGH COUNCIL,220713,ICT Support Services,Security,08/24/20,EACS LTD,2663.76,Sep-20
EREWASH BOROUGH COUNCIL,220833,Kerbside Dry Recycling Collection,Repairs and Maintenance,09/04/20,EAST MIDLANDS HYDRAULICS,235.98,Sep-20
EREWASH BOROUGH COUNCIL,220761,Homelessness,Homelessness-Lease Properties,08/04/20,EMH HOMES,1142.62,Sep-20
EREWASH BOROUGH COUNCIL,220762,Homelessness,Homelessness-Lease Properties,08/04/20,EMH HOMES,1170.53,Sep-20
EREWASH BOROUGH COUNCIL,220760,Homelessness,Homelessness-Lease Properties,08/04/20,EMH HOMES,1240.06,Sep-20
EREWASH BOROUGH COUNCIL,221077,Balance Sheet,Payroll Collection A/c - Labour Party Funds,09/23/20,EREWASH LABOUR GROUP,645.7,Sep-20
EREWASH BOROUGH COUNCIL,221037,Neighbourhood Wardens,Uniforms,04/07/20,EREWASH PARTNERSHIP LTD,274.56,Sep-20
EREWASH BOROUGH COUNCIL,221038,Neighbourhood Wardens,Uniforms,07/01/20,EREWASH PARTNERSHIP LTD,274.56,Sep-20
EREWASH BOROUGH COUNCIL,221037,Dog Control,Uniforms,04/07/20,EREWASH PARTNERSHIP LTD,274.56,Sep-20
EREWASH BOROUGH COUNCIL,221038,Dog Control,Uniforms,07/01/20,EREWASH PARTNERSHIP LTD,274.56,Sep-20
EREWASH BOROUGH COUNCIL,221040,Neighbourhood Wardens,Materials/Consumables,01/06/20,EREWASH PARTNERSHIP LTD,549.12,Sep-20
EREWASH BOROUGH COUNCIL,221001,Household/Residual Waste Collection,Hire Charges,08/21/20,EUROMUNICIPAL LTD,1700,Sep-20
EREWASH BOROUGH COUNCIL,220940,Household/Residual Waste Collection,Hire Charges,08/09/20,EUROMUNICIPAL LTD,1700,Sep-20
EREWASH BOROUGH COUNCIL,220939,Household/Residual Waste Collection,Hire Charges,07/31/20,EUROMUNICIPAL LTD,1700,Sep-20
EREWASH BOROUGH COUNCIL,221002,Household/Residual Waste Collection,Hire Charges,08/22/20,EUROMUNICIPAL LTD,1700,Sep-20
EREWASH BOROUGH COUNCIL,220706,Green Space,Repairs and Maintenance,08/21/20,EUROTRUCK MIDLANDS LTD,33,Sep-20
EREWASH BOROUGH COUNCIL,220304,Trade Waste,Repairs and Maintenance,08/10/20,EUROTRUCK MIDLANDS LTD,264,Sep-20
EREWASH BOROUGH COUNCIL,220706,Household/Residual Waste Collection,Repairs and Maintenance,08/21/20,EUROTRUCK MIDLANDS LTD,481,Sep-20
EREWASH BOROUGH COUNCIL,221031,Car Parking,Contracted Services,09/17/20,EXCEL COLOUR PRINT,549,Sep-20
EREWASH BOROUGH COUNCIL,220736,Balance Sheet,COVID19 Discretionary Business Grants,09/04/20,EXCEL COLOUR PRINT,10000,Sep-20
EREWASH BOROUGH COUNCIL,221111,Street Scene,Agency Staff,09/14/20,EXTRA PERSONNEL LTD,341.7,Sep-20
EREWASH BOROUGH COUNCIL,220949,Green Space,Agency Staff,08/10/20,EXTRA PERSONNEL LTD,498.76,Sep-20
EREWASH BOROUGH COUNCIL,221217,Public Conveniences,Agency Staff,08/31/20,EXTRA PERSONNEL LTD,657.4,Sep-20
EREWASH BOROUGH COUNCIL,221033,Public Conveniences,Agency Staff,09/18/20,EXTRA PERSONNEL LTD,657.4,Sep-20
EREWASH BOROUGH COUNCIL,220947,Street Scene,Agency Staff,08/17/20,EXTRA PERSONNEL LTD,657.4,Sep-20
EREWASH BOROUGH COUNCIL,220714,Public Conveniences,Agency Staff,08/03/20,EXTRA PERSONNEL LTD,657.4,Sep-20
EREWASH BOROUGH COUNCIL,220948,Public Conveniences,Agency Staff,08/10/20,EXTRA PERSONNEL LTD,657.4,Sep-20
EREWASH BOROUGH COUNCIL,221215,Public Conveniences,Agency Staff,08/24/20,EXTRA PERSONNEL LTD,657.4,Sep-20
EREWASH BOROUGH COUNCIL,221216,Public Conveniences,Agency Staff,08/31/20,EXTRA PERSONNEL LTD,675.64,Sep-20
EREWASH BOROUGH COUNCIL,220770,Street Scene,Agency Staff,08/17/20,EXTRA PERSONNEL LTD,763.5,Sep-20
EREWASH BOROUGH COUNCIL,220715,Street Scene,Agency Staff,08/10/20,EXTRA PERSONNEL LTD,763.5,Sep-20
EREWASH BOROUGH COUNCIL,220945,Green Space,Agency Staff,08/17/20,EXTRA PERSONNEL LTD,765.2,Sep-20
EREWASH BOROUGH COUNCIL,221033,Green Space,Agency Staff,09/18/20,EXTRA PERSONNEL LTD,808.8,Sep-20
EREWASH BOROUGH COUNCIL,220688,Green Space,Materials/Consumables,08/03/20,EXTRA PERSONNEL LTD,930.12,Sep-20
EREWASH BOROUGH COUNCIL,221108,Green Space,Agency Staff,09/14/20,EXTRA PERSONNEL LTD,941.6,Sep-20
EREWASH BOROUGH COUNCIL,221217,Green Space,Agency Staff,08/31/20,EXTRA PERSONNEL LTD,1237.85,Sep-20
EREWASH BOROUGH COUNCIL,220948,Green Space,Agency Staff,08/10/20,EXTRA PERSONNEL LTD,1328.15,Sep-20
EREWASH BOROUGH COUNCIL,220947,Green Space,Agency Staff,08/17/20,EXTRA PERSONNEL LTD,1338.07,Sep-20
EREWASH BOROUGH COUNCIL,220714,Green Space,Agency Staff,08/03/20,EXTRA PERSONNEL LTD,1405.47,Sep-20
EREWASH BOROUGH COUNCIL,220938,Kerbside Dry Recycling Collection,Agency Staff,08/03/20,EXTRA PERSONNEL LTD,2313.3,Sep-20
EREWASH BOROUGH COUNCIL,220936,Kerbside Dry Recycling Collection,Agency Staff,07/27/20,EXTRA PERSONNEL LTD,2508.38,Sep-20
EREWASH BOROUGH COUNCIL,220941,Kerbside Dry Recycling Collection,Agency Staff,08/10/20,EXTRA PERSONNEL LTD,2656.49,Sep-20
EREWASH BOROUGH COUNCIL,220946,Kerbside Dry Recycling Collection,Agency Staff,08/17/20,EXTRA PERSONNEL LTD,2720.64,Sep-20
EREWASH BOROUGH COUNCIL,221033,Street Scene,Agency Staff,09/18/20,EXTRA PERSONNEL LTD,2742.92,Sep-20
EREWASH BOROUGH COUNCIL,220714,Street Scene,Agency Staff,08/03/20,EXTRA PERSONNEL LTD,3026.11,Sep-20
EREWASH BOROUGH COUNCIL,220938,Household/Residual Waste Collection,Agency Staff,08/03/20,EXTRA PERSONNEL LTD,3469.95,Sep-20
EREWASH BOROUGH COUNCIL,221217,Street Scene,Agency Staff,08/31/20,EXTRA PERSONNEL LTD,3752.69,Sep-20
EREWASH BOROUGH COUNCIL,220936,Household/Residual Waste Collection,Agency Staff,07/27/20,EXTRA PERSONNEL LTD,3762.56,Sep-20
EREWASH BOROUGH COUNCIL,220948,Street Scene,Agency Staff,08/10/20,EXTRA PERSONNEL LTD,3816.15,Sep-20
EREWASH BOROUGH COUNCIL,220947,Public Conveniences,Agency Staff,08/17/20,EXTRA PERSONNEL LTD,3937.82,Sep-20
EREWASH BOROUGH COUNCIL,220941,Household/Residual Waste Collection,Agency Staff,08/10/20,EXTRA PERSONNEL LTD,3984.73,Sep-20
EREWASH BOROUGH COUNCIL,220946,Household/Residual Waste Collection,Agency Staff,08/17/20,EXTRA PERSONNEL LTD,4080.95,Sep-20
EREWASH BOROUGH COUNCIL,221108,Street Scene,Agency Staff,09/14/20,EXTRA PERSONNEL LTD,4251.98,Sep-20
EREWASH BOROUGH COUNCIL,220949,Street Scene,Agency Staff,08/10/20,EXTRA PERSONNEL LTD,4253.59,Sep-20
EREWASH BOROUGH COUNCIL,220945,Street Scene,Agency Staff,08/17/20,EXTRA PERSONNEL LTD,4370.97,Sep-20
EREWASH BOROUGH COUNCIL,220688,Street Scene,Agency Staff,08/03/20,EXTRA PERSONNEL LTD,4396.23,Sep-20
EREWASH BOROUGH COUNCIL,221215,Green Space,Agency Staff,08/24/20,EXTRA PERSONNEL LTD,4766.9,Sep-20
EREWASH BOROUGH COUNCIL,221110,Green Space,Agency Staff,09/14/20,EXTRA PERSONNEL LTD,5285.42,Sep-20
EREWASH BOROUGH COUNCIL,220820,Revenues and Benefits,Postages,09/03/20,FRAMA UK,3000,Sep-20
EREWASH BOROUGH COUNCIL,220999,Revenues and Benefits,Postages,09/16/20,FRAMA UK,5000,Sep-20
EREWASH BOROUGH COUNCIL,220767,Homelessness,Homelessness-Lease Properties,07/22/20,FUTURES HOMESCAPE LTD,1141.75,Sep-20
EREWASH BOROUGH COUNCIL,220689,Green Space,Contracted Services,08/23/20,GO TRAFFIC MANAGEMENT,795,Sep-20
EREWASH BOROUGH COUNCIL,220697,Play Areas,Materials/Consumables,08/27/20,HAGSSMP,1995,Sep-20
EREWASH BOROUGH COUNCIL,221135,Erewash Museum,General Equipment,09/23/20,REDACTED PERSONAL DATA,280.8,Sep-20
EREWASH BOROUGH COUNCIL,220725,Green Space,Repairs and Maintenance,07/10/20,HENTON & CHATTELL LTD,216.23,Sep-20
EREWASH BOROUGH COUNCIL,220720,Green Space,Materials/Consumables,08/25/20,HENTON & CHATTELL LTD,332.5,Sep-20
EREWASH BOROUGH COUNCIL,220330,Green Space,General Equipment,08/12/20,HENTON & CHATTELL LTD,485,Sep-20
EREWASH BOROUGH COUNCIL,221076,Balance Sheet,Payroll Collection A/c - Attachment Orders,09/23/20,HMCTS,295.17,Sep-20
EREWASH BOROUGH COUNCIL,220899,Personnel,Apprenticeship Levy,09/14/20,HMRC CUMBERNAULD,-1250,Sep-20
EREWASH BOROUGH COUNCIL,221068,Balance Sheet,Payroll Collection A/c - Income Tax,09/23/20,HMRC CUMBERNAULD,286.6,Sep-20
EREWASH BOROUGH COUNCIL,220728,Balance Sheet,Payroll Collection A/c - Income Tax,09/02/20,HMRC CUMBERNAULD,320,Sep-20
EREWASH BOROUGH COUNCIL,221134,Balance Sheet,Payroll Collection A/c - Income Tax,09/28/20,HMRC CUMBERNAULD,350.2,Sep-20
EREWASH BOROUGH COUNCIL,221134,Balance Sheet,Payroll Collection A/c - National Insurance,09/28/20,HMRC CUMBERNAULD,479.39,Sep-20
EREWASH BOROUGH COUNCIL,220728,Balance Sheet,Payroll Collection A/c - National Insurance,09/02/20,HMRC CUMBERNAULD,493.3,Sep-20
EREWASH BOROUGH COUNCIL,220899,Balance Sheet,Payroll Collection A/c - Recovery of Student Loan,09/14/20,HMRC CUMBERNAULD,1043,Sep-20
EREWASH BOROUGH COUNCIL,220899,Balance Sheet,Apprenticeship Levy,09/14/20,HMRC CUMBERNAULD,3251,Sep-20
EREWASH BOROUGH COUNCIL,220899,Balance Sheet,Payroll Collection A/c - Income Tax,09/14/20,HMRC CUMBERNAULD,65066.2,Sep-20
EREWASH BOROUGH COUNCIL,220899,Balance Sheet,Payroll Collection A/c - National Insurance,09/14/20,HMRC CUMBERNAULD,98489.1,Sep-20
EREWASH BOROUGH COUNCIL,220803,Green Space,Materials/Consumables,09/07/20,REDACTED PERSONAL DATA,650,Sep-20
EREWASH BOROUGH COUNCIL,221121,Green Space,Repairs and Maintenance,09/08/20,HOWARDSON LTD,428.45,Sep-20
EREWASH BOROUGH COUNCIL,220721,Green Space,Materials/Consumables,08/26/20,ILKESTON PLY & DIY LTD,288.75,Sep-20
EREWASH BOROUGH COUNCIL,221128,Non-domestic Rates Collection,Fees Costs and Expenses,09/03/20,INFORM CPI LTD,800,Sep-20
EREWASH BOROUGH COUNCIL,221129,Non-domestic Rates Collection,Fees Costs and Expenses,09/09/20,INFORM CPI LTD,2660,Sep-20
EREWASH BOROUGH COUNCIL,221200,Performance Management,Data Protection,08/26/20,INFORMATION COMMISSIONER,2900,Sep-20
EREWASH BOROUGH COUNCIL,221034,Car Parking,Credit/Debit Card Charges,08/31/20,INTERNATIONAL PARKING SYSTEMS UK LTD,380.08,Sep-20
EREWASH BOROUGH COUNCIL,221162,Homelessness,Agency Staff,09/08/20,JAMES ANDREWS RECRUITMENT SOLUTIONS,847,Sep-20
EREWASH BOROUGH COUNCIL,221161,Homelessness,Agency Staff,09/15/20,JAMES ANDREWS RECRUITMENT SOLUTIONS,875,Sep-20
EREWASH BOROUGH COUNCIL,220680,Homelessness,Agency Staff,08/25/20,JAMES ANDREWS RECRUITMENT SOLUTIONS,896,Sep-20
EREWASH BOROUGH COUNCIL,221160,Homelessness,Agency Staff,09/23/20,JAMES ANDREWS RECRUITMENT SOLUTIONS,896,Sep-20
EREWASH BOROUGH COUNCIL,220679,Homelessness,Agency Staff,08/18/20,JAMES ANDREWS RECRUITMENT SOLUTIONS,896,Sep-20
EREWASH BOROUGH COUNCIL,220753,Homelessness,Agency Staff,09/02/20,JAMES ANDREWS RECRUITMENT SOLUTIONS,896,Sep-20
EREWASH BOROUGH COUNCIL,221041,Balance Sheet,Grant Payments,09/18/20,REDACTED PERSONAL DATA,7169.26,Sep-20
EREWASH BOROUGH COUNCIL,220993,Balance Sheet,Childcare Salary Sacrifice-Kiddie Vouchers,09/04/20,KIDDIVOUCHERS LTD,960.51,Sep-20
EREWASH BOROUGH COUNCIL,220817,Cemeteries,Contracted Services,08/31/20,KINGS ARMOURED SECURITY SERVICES,17.65,Sep-20
EREWASH BOROUGH COUNCIL,220817,Front Line Support Services,Security,08/31/20,KINGS ARMOURED SECURITY SERVICES,644,Sep-20
EREWASH BOROUGH COUNCIL,221223,Car Parking,Contracted Services,08/31/20,KINGS ARMOURED SECURITY SERVICES,1101.75,Sep-20
EREWASH BOROUGH COUNCIL,220765,Food Inspection and Hygiene,Materials/Consumables,08/12/20,KLIPSPRINGER INSTRUMENTATION,549,Sep-20
EREWASH BOROUGH COUNCIL,220307,Play Areas,Materials/Consumables,08/07/20,KOMPAN LTD,312.4,Sep-20
EREWASH BOROUGH COUNCIL,220854,Street Scene,Contracted Services,09/03/20,LANGUARD LTD,3511.35,Sep-20
EREWASH BOROUGH COUNCIL,221203,Green Space,Repairs and Maintenance,09/16/20,LARKLANDS BODY & PAINT CENTRE,250,Sep-20
EREWASH BOROUGH COUNCIL,221150,Transport Trading Account,Materials/Consumables,09/03/20,LEDAM MAINTENANCE SUPPLIES,27.59,Sep-20
EREWASH BOROUGH COUNCIL,220840,Transport Trading Account,Protective Clothing,08/28/20,LEDAM MAINTENANCE SUPPLIES,49.95,Sep-20
EREWASH BOROUGH COUNCIL,221150,Transport Trading Account,Lubricants and Anti-freeze,09/03/20,LEDAM MAINTENANCE SUPPLIES,183.95,Sep-20
EREWASH BOROUGH COUNCIL,220840,Transport Trading Account,Materials/Consumables,08/28/20,LEDAM MAINTENANCE SUPPLIES,245.07,Sep-20
EREWASH BOROUGH COUNCIL,220907,Legal Services,Reference Literature and Publications,08/28/20,LEXISNEXIS BUTTERWORTHS,411,Sep-20
EREWASH BOROUGH COUNCIL,221032,Hackney Carriages / Private Hire,Software Licences,09/18/20,LICENCE CHECK LIMITED,1350,Sep-20
EREWASH BOROUGH COUNCIL,221141,Parish Council Concurrent Functions,Little Eaton - Precept,09/28/20,LITTLE EATON PARISH COUNCIL,3257,Sep-20
EREWASH BOROUGH COUNCIL,221141,Parish Precepts,Little Eaton - Precept,09/28/20,LITTLE EATON PARISH COUNCIL,4341,Sep-20
EREWASH BOROUGH COUNCIL,220911,Outreach Project,Fees Costs and Expenses,08/03/20,LLOYDS BANK,2.26,Sep-20
EREWASH BOROUGH COUNCIL,220911,ICT Support Services,Printing and Stationery,08/03/20,LLOYDS BANK,13.99,Sep-20
EREWASH BOROUGH COUNCIL,220911,ICT Support Services,General Equipment,08/03/20,LLOYDS BANK,18.22,Sep-20
EREWASH BOROUGH COUNCIL,220911,ICT Support Services,Software Licences,08/03/20,LLOYDS BANK,21.6,Sep-20
EREWASH BOROUGH COUNCIL,220911,Community Services,Printing and Stationery,08/03/20,LLOYDS BANK,23.48,Sep-20
EREWASH BOROUGH COUNCIL,221197,Treasury Management and Bank Charges,Unpaid Cheque Fees,05/12/20,LLOYDS BANK,23.98,Sep-20
EREWASH BOROUGH COUNCIL,220911,Neighbourhood Wardens,Repairs and Maintenance,08/03/20,LLOYDS BANK,28.28,Sep-20
EREWASH BOROUGH COUNCIL,220911,ICT Support Services,Mobile Phones,08/03/20,LLOYDS BANK,32.94,Sep-20
EREWASH BOROUGH COUNCIL,220911,Front Line Support Services,Uniforms,08/03/20,LLOYDS BANK,46.9,Sep-20
EREWASH BOROUGH COUNCIL,220911,Food Inspection and Hygiene,Materials/Consumables,08/03/20,LLOYDS BANK,95.84,Sep-20
EREWASH BOROUGH COUNCIL,220911,Neighbourhood Wardens,Materials/Consumables,08/03/20,LLOYDS BANK,110.2,Sep-20
EREWASH BOROUGH COUNCIL,220911,Transport Trading Account,Repairs and Maintenance,08/03/20,LLOYDS BANK,122.46,Sep-20
EREWASH BOROUGH COUNCIL,220911,Reprographics,Printing and Stationery,08/03/20,LLOYDS BANK,139.68,Sep-20
EREWASH BOROUGH COUNCIL,221196,Treasury Management and Bank Charges,Lloyds Bank Charges for Debits and Credits,07/06/20,LLOYDS BANK,149.7,Sep-20
EREWASH BOROUGH COUNCIL,221196,Treasury Management and Bank Charges,Unpaid Cheque Fees,07/06/20,LLOYDS BANK,155.82,Sep-20
EREWASH BOROUGH COUNCIL,221197,Treasury Management and Bank Charges,Lloyds Bank Charges for Debits and Credits,05/12/20,LLOYDS BANK,184,Sep-20
EREWASH BOROUGH COUNCIL,220911,Ilkeston Admin and Courier,Road Taxes,08/03/20,LLOYDS BANK,267.5,Sep-20
EREWASH BOROUGH COUNCIL,221196,Treasury Management and Bank Charges,Lloyds BACS Services,07/06/20,LLOYDS BANK,502.72,Sep-20
EREWASH BOROUGH COUNCIL,221197,Treasury Management and Bank Charges,Lloyds BACS Services,05/12/20,LLOYDS BANK,602.41,Sep-20
EREWASH BOROUGH COUNCIL,220911,Green Space,Materials/Consumables,08/03/20,LLOYDS BANK,1270.2,Sep-20
EREWASH BOROUGH COUNCIL,220810,Trade Waste,Tyres,08/29/20,LODGE TYRE COMPANY LTD,35,Sep-20
EREWASH BOROUGH COUNCIL,220810,Property and Estates,Tyres,08/29/20,LODGE TYRE COMPANY LTD,96,Sep-20
EREWASH BOROUGH COUNCIL,220810,Green Space,Tyres,08/29/20,LODGE TYRE COMPANY LTD,440,Sep-20
EREWASH BOROUGH COUNCIL,220810,Street Scene,Tyres,08/29/20,LODGE TYRE COMPANY LTD,490,Sep-20
EREWASH BOROUGH COUNCIL,220810,Household/Residual Waste Collection,Tyres,08/29/20,LODGE TYRE COMPANY LTD,1192.5,Sep-20
EREWASH BOROUGH COUNCIL,220810,Kerbside Dry Recycling Collection,Tyres,08/29/20,LODGE TYRE COMPANY LTD,1410,Sep-20
EREWASH BOROUGH COUNCIL,220908,Green Space,Materials/Consumables,09/15/20,LONG EATON NATURAL HISTORY SOCIETY WILDLIFE GROUP,500,Sep-20
EREWASH BOROUGH COUNCIL,220928,Green Space,Materials/Consumables,08/14/20,M3C SPORTS SUPPLIES LIMITED,882.95,Sep-20
EREWASH BOROUGH COUNCIL,220788,Balance Sheet,ICT Works,08/23/20,MACILDOWIE RECRUITMENT EXPERTISE,778.5,Sep-20
EREWASH BOROUGH COUNCIL,221109,Balance Sheet,ICT Works,09/20/20,MACILDOWIE RECRUITMENT EXPERTISE,1152.18,Sep-20
EREWASH BOROUGH COUNCIL,220780,Balance Sheet,ICT Works,08/16/20,MACILDOWIE RECRUITMENT EXPERTISE,1206.68,Sep-20
EREWASH BOROUGH COUNCIL,220951,Balance Sheet,ICT Works,09/13/20,MACILDOWIE RECRUITMENT EXPERTISE,1798.34,Sep-20
EREWASH BOROUGH COUNCIL,220866,Personnel,Legal Expenses,09/02/20,MACLAREN WARNER SOLICITORS.,234,Sep-20
EREWASH BOROUGH COUNCIL,220994,Personnel,Legal Expenses,09/08/20,MACLAREN WARNER SOLICITORS.,250,Sep-20
EREWASH BOROUGH COUNCIL,220755,Household/Residual Waste Collection,Protective Clothing,08/17/20,MAIN MAN SUPPLIES LTD,278.62,Sep-20
EREWASH BOROUGH COUNCIL,220396,Household/Residual Waste Collection,Protective Clothing,08/12/20,MAIN MAN SUPPLIES LTD,784.44,Sep-20
EREWASH BOROUGH COUNCIL,220961,Community Safety,General Equipment,07/03/20,MALLARD CONSULTANCY LIMITED,490,Sep-20
EREWASH BOROUGH COUNCIL,220961,"Police, Crime Commissioner Community Safety Grant",Project Grants,07/03/20,MALLARD CONSULTANCY LIMITED,500,Sep-20
EREWASH BOROUGH COUNCIL,220452,Property and Estates,Repairs and Maintenance,08/06/20,MDB PLUMBING (NOTTM) LTD,318.91,Sep-20
EREWASH BOROUGH COUNCIL,220488,Property and Estates,PPM Mechanical and Equipment,08/19/20,MDB PLUMBING (NOTTM) LTD,478.82,Sep-20
EREWASH BOROUGH COUNCIL,220489,Property and Estates,Repairs and Maintenance,08/19/20,MDB PLUMBING (NOTTM) LTD,909.16,Sep-20
EREWASH BOROUGH COUNCIL,220450,Property and Estates,Repairs and Maintenance,08/06/20,MDB PLUMBING (NOTTM) LTD,1095.6,Sep-20
EREWASH BOROUGH COUNCIL,220991,Occupational Health and Welfare,Occupational Health Service,09/03/20,MEDIGOLD HEALTH CONSULTANCY LIMITED,807.5,Sep-20
EREWASH BOROUGH COUNCIL,221164,Household/Residual Waste Collection,Bins,08/14/20,MGB PLASTICS LTD,780,Sep-20
EREWASH BOROUGH COUNCIL,220910,Non Ring Fenced Government Grants,Revenue Support Grant,09/21/20,MHCLG,-8439,Sep-20
EREWASH BOROUGH COUNCIL,220910,Balance Sheet,NNDR Collection Fund Control Account,09/21/20,MHCLG,-6833,Sep-20
EREWASH BOROUGH COUNCIL,220910,Balance Sheet,NNDR Collection Fund Control Account,09/21/20,MHCLG,-2318,Sep-20
EREWASH BOROUGH COUNCIL,220910,Balance Sheet,NNDR Collection Fund Control Account,09/21/20,MHCLG,994833,Sep-20
EREWASH BOROUGH COUNCIL,221142,Parish Council Concurrent Functions,Morley - Precept,09/28/20,MORLEY PARISH COUNCIL,340,Sep-20
EREWASH BOROUGH COUNCIL,221142,Parish Precepts,Morley - Precept,09/28/20,MORLEY PARISH COUNCIL,1150,Sep-20
EREWASH BOROUGH COUNCIL,221238,Homelessness,Temporary Accommodation,08/26/20,REDACTED PERSONAL DATA,360,Sep-20
EREWASH BOROUGH COUNCIL,220681,Homelessness,Temporary Accommodation,08/04/20,REDACTED PERSONAL DATA,360,Sep-20
EREWASH BOROUGH COUNCIL,221228,Homelessness,Temporary Accommodation,08/17/20,REDACTED PERSONAL DATA,420,Sep-20
EREWASH BOROUGH COUNCIL,221233,Homelessness,Temporary Accommodation,09/21/20,REDACTED PERSONAL DATA,420,Sep-20
EREWASH BOROUGH COUNCIL,221230,Homelessness,Temporary Accommodation,08/31/20,REDACTED PERSONAL DATA,420,Sep-20
EREWASH BOROUGH COUNCIL,221231,Homelessness,Temporary Accommodation,09/07/20,REDACTED PERSONAL DATA,420,Sep-20
EREWASH BOROUGH COUNCIL,220682,Homelessness,Temporary Accommodation,08/10/20,REDACTED PERSONAL DATA,420,Sep-20
EREWASH BOROUGH COUNCIL,221236,Homelessness,Temporary Accommodation,09/14/20,REDACTED PERSONAL DATA,420,Sep-20
EREWASH BOROUGH COUNCIL,221229,Homelessness,Temporary Accommodation,08/24/20,REDACTED PERSONAL DATA,420,Sep-20
EREWASH BOROUGH COUNCIL,221232,Homelessness,Temporary Accommodation,09/14/20,REDACTED PERSONAL DATA,420,Sep-20
EREWASH BOROUGH COUNCIL,221226,Homelessness,Temporary Accommodation,09/16/20,REDACTED PERSONAL DATA,480,Sep-20
EREWASH BOROUGH COUNCIL,221235,Homelessness,Temporary Accommodation,09/07/20,REDACTED PERSONAL DATA,630,Sep-20
EREWASH BOROUGH COUNCIL,221227,Homelessness,Temporary Accommodation,09/07/20,REDACTED PERSONAL DATA,630,Sep-20
EREWASH BOROUGH COUNCIL,220686,Homelessness,Temporary Accommodation,07/13/20,REDACTED PERSONAL DATA,840,Sep-20
EREWASH BOROUGH COUNCIL,220683,Homelessness,Temporary Accommodation,07/13/20,REDACTED PERSONAL DATA,840,Sep-20
EREWASH BOROUGH COUNCIL,221237,Homelessness,Temporary Accommodation,08/17/20,REDACTED PERSONAL DATA,840,Sep-20
EREWASH BOROUGH COUNCIL,221234,Homelessness,Temporary Accommodation,08/10/20,REDACTED PERSONAL DATA,840,Sep-20
EREWASH BOROUGH COUNCIL,220882,Property and Estates,Reactive Maintenance,08/28/20,N B CONSTRUCTION,350,Sep-20
EREWASH BOROUGH COUNCIL,220791,Car Parking,Reactive Maintenance,08/26/20,N B CONSTRUCTION,1071,Sep-20
EREWASH BOROUGH COUNCIL,220466,Car Parking,Reactive Maintenance,08/10/20,N B CONSTRUCTION,1364.2,Sep-20
EREWASH BOROUGH COUNCIL,220290,Play Areas,Materials/Consumables,08/11/20,NIBRA SIGNS LTD,256.56,Sep-20
EREWASH BOROUGH COUNCIL,220291,"Sport, Health and Physical Activity - Alliance",Fees Costs and Expenses,08/11/20,NIBRA SIGNS LTD,262.71,Sep-20
EREWASH BOROUGH COUNCIL,220332,Street Scene,Street Furniture,08/13/20,NIBRA SIGNS LTD,565.95,Sep-20
EREWASH BOROUGH COUNCIL,220331,Street Scene,Street Furniture,08/13/20,NIBRA SIGNS LTD,1064.4,Sep-20
EREWASH BOROUGH COUNCIL,220739,Balance Sheet,COVID19 Discretionary Business Grants,09/04/20,NICK GILL MORTGAGES LTD,4200,Sep-20
EREWASH BOROUGH COUNCIL,221056,Development Control - Fee Earning,Consultants Fees,09/18/20,NO5 CHAMBERS LTD COLLECTION ACCOUNT,900,Sep-20
EREWASH BOROUGH COUNCIL,220790,Balance Sheet,ICT Software Licence Payment in Advance,08/27/20,NORTH EAST DERBYSHIRE DISTRICT COUNCIL.,870,Sep-20
EREWASH BOROUGH COUNCIL,220771,Homelessness,Temporary Accommodation,06/24/20,NOVOTEL NOTTINGHAM,324.17,Sep-20
EREWASH BOROUGH COUNCIL,221143,Parish Council Concurrent Functions,Ockbrook - Precept,09/28/20,OCKBROOK AND BORROWASH PARISH COUNCIL,5933,Sep-20
EREWASH BOROUGH COUNCIL,221143,Parish Precepts,Ockbrook - Precept,09/28/20,OCKBROOK AND BORROWASH PARISH COUNCIL,21933,Sep-20
EREWASH BOROUGH COUNCIL,220857,Community Services,Printing and Stationery,09/08/20,PAGE WHELAN,472,Sep-20
EREWASH BOROUGH COUNCIL,220710,Green Space,Path Repairs,08/25/20,PARKIN CONTRACTORS LTD,758.66,Sep-20
EREWASH BOROUGH COUNCIL,220501,Balance Sheet,EBC Fit for Work Scheme,08/25/20,PARKWOOD LEISURE LTD,280.5,Sep-20
EREWASH BOROUGH COUNCIL,221075,Balance Sheet,EBC Fit for Work Scheme,09/23/20,PARKWOOD LEISURE LTD,550,Sep-20
EREWASH BOROUGH COUNCIL,220429,Leisure Contract,Contracted Services,08/20/20,PARKWOOD LEISURE LTD,26733.42,Sep-20
EREWASH BOROUGH COUNCIL,220903,Leisure Contract,Contracted Services,09/09/20,PARKWOOD LEISURE LTD,43315,Sep-20
EREWASH BOROUGH COUNCIL,220859,Street Scene,Repairs and Maintenance,09/08/20,PARTIC MOTOR SPARES LTD,866.31,Sep-20
EREWASH BOROUGH COUNCIL,220738,Balance Sheet,COVID19 Discretionary Business Grants,09/04/20,REDACTED PERSONAL DATA,4200,Sep-20
EREWASH BOROUGH COUNCIL,220434,Street Scene,Repairs and Maintenance,08/18/20,PB AUTO ELECTRICS,274.04,Sep-20
EREWASH BOROUGH COUNCIL,221019,Property and Estates,PPM Mechanical and Equipment,09/08/20,PEEL ELECTRICAL LTD,244.64,Sep-20
EREWASH BOROUGH COUNCIL,220460,Property and Estates,PPM Mechanical and Equipment,08/12/20,PEEL ELECTRICAL LTD,263.86,Sep-20
EREWASH BOROUGH COUNCIL,220458,Property and Estates,PPM Mechanical and Equipment,08/12/20,PEEL ELECTRICAL LTD,338.96,Sep-20
EREWASH BOROUGH COUNCIL,220879,Property and Estates,PPM Mechanical and Equipment,09/08/20,PEEL ELECTRICAL LTD,474.32,Sep-20
EREWASH BOROUGH COUNCIL,220464,Property and Estates,Repairs and Maintenance,08/14/20,PEEL ELECTRICAL LTD,545.42,Sep-20
EREWASH BOROUGH COUNCIL,220477,Property and Estates,PPM Mechanical and Equipment,08/12/20,PEEL ELECTRICAL LTD,673.36,Sep-20
EREWASH BOROUGH COUNCIL,220478,Property and Estates,PPM Mechanical and Equipment,08/12/20,PEEL ELECTRICAL LTD,708.56,Sep-20
EREWASH BOROUGH COUNCIL,220696,Green Space,Materials/Consumables,08/17/20,PENTLAND PLANTS LTD,1415.65,Sep-20
EREWASH BOROUGH COUNCIL,220667,Green Space,Materials/Consumables,08/24/20,PENTLAND PLANTS LTD,1496.53,Sep-20
EREWASH BOROUGH COUNCIL,220842,Dog Control,Repairs and Maintenance,09/08/20,PERRYS,261.37,Sep-20
EREWASH BOROUGH COUNCIL,220350,Street Scene,Repairs and Maintenance,08/10/20,PERRYS,299.22,Sep-20
EREWASH BOROUGH COUNCIL,220832,Green Space,Materials/Consumables,09/04/20,PITCHMARK LIMITED T/A TOTAL AMENITY SUPPLIES,885,Sep-20
EREWASH BOROUGH COUNCIL,220436,Green Space,Repairs and Maintenance,08/20/20,PLATTS HARRIS LIMITED,1168.34,Sep-20
EREWASH BOROUGH COUNCIL,220731,Development Control - Fee Earning,Planning Fees,09/02/20,PORTALPLANQUEST LTD,462,Sep-20
EREWASH BOROUGH COUNCIL,220730,Development Control - Fee Earning,Planning Fees,09/02/20,PORTALPLANQUEST LTD,462,Sep-20
EREWASH BOROUGH COUNCIL,221067,Property and Estates,Road Taxes,09/15/20,POST OFFICE LTD,265,Sep-20
EREWASH BOROUGH COUNCIL,221067,Street Scene,Road Taxes,09/15/20,POST OFFICE LTD,465,Sep-20
EREWASH BOROUGH COUNCIL,221067,Green Space,Road Taxes,09/15/20,POST OFFICE LTD,530,Sep-20
EREWASH BOROUGH COUNCIL,221067,Dog Control,Road Taxes,09/15/20,POST OFFICE LTD,530,Sep-20
EREWASH BOROUGH COUNCIL,221067,Neighbourhood Wardens,Road Taxes,09/15/20,POST OFFICE LTD,1325,Sep-20
EREWASH BOROUGH COUNCIL,220673,Play Areas,Materials/Consumables,07/30/20,PRO-LITE TECHNOLOGY LTD,1469,Sep-20
EREWASH BOROUGH COUNCIL,220328,Green Space,Materials/Consumables,08/07/20,PROTECTIVE WEAR SUPPLIES LTD,226.08,Sep-20
EREWASH BOROUGH COUNCIL,220847,Green Space,Materials/Consumables,08/27/20,PROTECTIVE WEAR SUPPLIES LTD,309.08,Sep-20
EREWASH BOROUGH COUNCIL,220808,Green Space,Materials/Consumables,08/27/20,PROTECTIVE WEAR SUPPLIES LTD,563.5,Sep-20
EREWASH BOROUGH COUNCIL,220902,Economic Development,Contracted Services,09/01/20,PROXIMITY FUTURES T/A ELEPHANT WIFI,303.33,Sep-20
EREWASH BOROUGH COUNCIL,221078,Balance Sheet,Payroll Collection A/c - AVCS,09/23/20,PRUDENTIAL,4362.5,Sep-20
EREWASH BOROUGH COUNCIL,220900,Balance Sheet,Counter Fraud Fund,08/31/20,Q2 LIMITED,770,Sep-20
EREWASH BOROUGH COUNCIL,220901,Revenues and Benefits,Software Licences,08/31/20,Q2 LIMITED,2310,Sep-20
EREWASH BOROUGH COUNCIL,220943,Kerbside Dry Recycling Collection,Agency Staff,08/27/20,QUALITY SERVICE RECRUITMENT LTD,270.09,Sep-20
EREWASH BOROUGH COUNCIL,220943,Household/Residual Waste Collection,Agency Staff,08/27/20,QUALITY SERVICE RECRUITMENT LTD,405.14,Sep-20
EREWASH BOROUGH COUNCIL,220942,Kerbside Dry Recycling Collection,Agency Staff,08/20/20,QUALITY SERVICE RECRUITMENT LTD,444.15,Sep-20
EREWASH BOROUGH COUNCIL,221003,Street Scene,Agency Staff,09/03/20,QUALITY SERVICE RECRUITMENT LTD,444.15,Sep-20
EREWASH BOROUGH COUNCIL,221003,Household/Residual Waste Collection,Agency Staff,09/03/20,QUALITY SERVICE RECRUITMENT LTD,666.22,Sep-20
EREWASH BOROUGH COUNCIL,220942,Household/Residual Waste Collection,Agency Staff,08/20/20,QUALITY SERVICE RECRUITMENT LTD,666.22,Sep-20
EREWASH BOROUGH COUNCIL,220834,Transport Trading Account,Agency Staff,09/07/20,QUESTECH RECRUITMENT LTD,710.5,Sep-20
EREWASH BOROUGH COUNCIL,220750,Transport Trading Account,Agency Staff,07/13/20,QUESTECH RECRUITMENT LTD,906.5,Sep-20
EREWASH BOROUGH COUNCIL,220809,Transport Trading Account,Agency Staff,09/01/20,QUESTECH RECRUITMENT LTD,906.5,Sep-20
EREWASH BOROUGH COUNCIL,221050,Transport Trading Account,Agency Staff,09/14/20,QUESTECH RECRUITMENT LTD,906.5,Sep-20
EREWASH BOROUGH COUNCIL,220751,Transport Trading Account,Agency Staff,07/20/20,QUESTECH RECRUITMENT LTD,906.5,Sep-20
EREWASH BOROUGH COUNCIL,221158,Green Space,Materials/Consumables,09/24/20,RAMM SANDERSON ECOLOGY LTD,720,Sep-20
EREWASH BOROUGH COUNCIL,221157,Green Space,Materials/Consumables,09/24/20,RAMM SANDERSON ECOLOGY LTD,720,Sep-20
EREWASH BOROUGH COUNCIL,220960,Building Control - Advice and Information,Contracted Services,09/01/20,RANSOMWOOD ESTATES UK LIMITED,531.67,Sep-20
EREWASH BOROUGH COUNCIL,220777,Democratic Representation,Advertising,06/07/20,REACH PUBLISHING SERVICES LIMITED,390.4,Sep-20
EREWASH BOROUGH COUNCIL,221144,Parish Council Concurrent Functions,Risley - Precept,09/28/20,RISLEY WITH HOPWELL PARISH COUNCIL,1837,Sep-20
EREWASH BOROUGH COUNCIL,221144,Parish Precepts,Risley - Precept,09/28/20,RISLEY WITH HOPWELL PARISH COUNCIL,2378,Sep-20
EREWASH BOROUGH COUNCIL,220539,Green Space,Training,08/24/20,ROYAL HORTICULTURAL SOCIETY.,1258.33,Sep-20
EREWASH BOROUGH COUNCIL,220856,Revenues and Benefits,Postages,09/07/20,ROYAL MAIL GROUP LTD.,333,Sep-20
EREWASH BOROUGH COUNCIL,220874,Registration of Electors,Printing and Stationery,09/07/20,ROYAL MAIL GROUP LTD.,1057.97,Sep-20
EREWASH BOROUGH COUNCIL,220671,Revenues and Benefits,Postages,08/26/20,ROYAL MAIL GROUP LTD.,1088.91,Sep-20
EREWASH BOROUGH COUNCIL,221055,Revenues and Benefits,Postages,09/16/20,ROYAL MAIL GROUP LTD.,1207.42,Sep-20
EREWASH BOROUGH COUNCIL,221132,Communications,General Publicity and Promotion,09/02/20,ROYAL MAIL GROUP LTD.,5257.04,Sep-20
EREWASH BOROUGH COUNCIL,221145,Parish Council Concurrent Functions,Sandiacre - Precept,09/28/20,SANDIACRE PARISH COUNCIL,6680,Sep-20
EREWASH BOROUGH COUNCIL,221145,Parish Precepts,Sandiacre - Precept,09/28/20,SANDIACRE PARISH COUNCIL,12501,Sep-20
EREWASH BOROUGH COUNCIL,221146,Parish Council Concurrent Functions,Sawley - Precept,09/28/20,SAWLEY PARISH COUNCIL,530,Sep-20
EREWASH BOROUGH COUNCIL,221146,Parish Precepts,Sawley - Precept,09/28/20,SAWLEY PARISH COUNCIL,11800,Sep-20
EREWASH BOROUGH COUNCIL,221114,Registration of Electors,Printing and Stationery,09/16/20,SCI PRINT LTD,1943.75,Sep-20
EREWASH BOROUGH COUNCIL,220823,Car Parking,General Equipment,09/07/20,REDACTED PERSONAL DATA,282.9,Sep-20
EREWASH BOROUGH COUNCIL,220815,Car Parking,Unmetered Water,09/02/20,SCOTTISH WATER BUSINESS STREAM LIMITED,1.1,Sep-20
EREWASH BOROUGH COUNCIL,220815,Shopmobility - Long Eaton,Metered Water,09/02/20,SCOTTISH WATER BUSINESS STREAM LIMITED,13.33,Sep-20
EREWASH BOROUGH COUNCIL,220815,Shopmobility - Ilkeston,Metered Water,09/02/20,SCOTTISH WATER BUSINESS STREAM LIMITED,39.84,Sep-20
EREWASH BOROUGH COUNCIL,220815,Cotmanhay Pavilion,Unmetered Water,09/02/20,SCOTTISH WATER BUSINESS STREAM LIMITED,58.93,Sep-20
EREWASH BOROUGH COUNCIL,220815,Cemeteries,Metered Water,09/02/20,SCOTTISH WATER BUSINESS STREAM LIMITED,89.16,Sep-20
EREWASH BOROUGH COUNCIL,220815,Abbotsford Community Centre,Unmetered Water,09/02/20,SCOTTISH WATER BUSINESS STREAM LIMITED,95.04,Sep-20
EREWASH BOROUGH COUNCIL,220815,Civic Accommodation - Long Eaton,Metered Water,09/02/20,SCOTTISH WATER BUSINESS STREAM LIMITED,126.85,Sep-20
EREWASH BOROUGH COUNCIL,220815,Long Eaton Market,Metered Water,09/02/20,SCOTTISH WATER BUSINESS STREAM LIMITED,192.73,Sep-20
EREWASH BOROUGH COUNCIL,220815,Public Conveniences,Metered Water,09/02/20,SCOTTISH WATER BUSINESS STREAM LIMITED,277.2,Sep-20
EREWASH BOROUGH COUNCIL,220815,Rutland Sports Park,Metered Water,09/02/20,SCOTTISH WATER BUSINESS STREAM LIMITED,335.44,Sep-20
EREWASH BOROUGH COUNCIL,220815,Civic Accommodation - Ilkeston,Metered Water,09/02/20,SCOTTISH WATER BUSINESS STREAM LIMITED,450.19,Sep-20
EREWASH BOROUGH COUNCIL,220815,Green Space,Metered Water,09/02/20,SCOTTISH WATER BUSINESS STREAM LIMITED,592.6,Sep-20
EREWASH BOROUGH COUNCIL,220815,Allotments,Metered Water,09/02/20,SCOTTISH WATER BUSINESS STREAM LIMITED,685.61,Sep-20
EREWASH BOROUGH COUNCIL,220815,Merlin Way Depot - Ilkeston,Metered Water,09/02/20,SCOTTISH WATER BUSINESS STREAM LIMITED,952.27,Sep-20
EREWASH BOROUGH COUNCIL,220965,Erewash Museum,Special Events,09/14/20,REDACTED PERSONAL DATA,350,Sep-20
EREWASH BOROUGH COUNCIL,220927,Green Space,Materials/Consumables,08/28/20,SPALDINGS LIMITED,361.2,Sep-20
EREWASH BOROUGH COUNCIL,221147,Parish Council Concurrent Functions,Stanley - Precept,09/28/20,STANLEY & STANLEY COMMON PARISH COUNCIL,2065,Sep-20
EREWASH BOROUGH COUNCIL,221147,Parish Precepts,Stanley - Precept,09/28/20,STANLEY & STANLEY COMMON PARISH COUNCIL,4409,Sep-20
EREWASH BOROUGH COUNCIL,221148,Parish Council Concurrent Functions,Stanton by Dale - Precept,09/28/20,STANTON-BY-DALE PARISH COUNCIL,1133,Sep-20
EREWASH BOROUGH COUNCIL,221148,Parish Precepts,Stanton by Dale - Precept,09/28/20,STANTON-BY-DALE PARISH COUNCIL,1492,Sep-20
EREWASH BOROUGH COUNCIL,220299,Erewash Museum,Goods for Resale,08/07/20,STAR EDITIONS LTD,252.71,Sep-20
EREWASH BOROUGH COUNCIL,220444,Green Space,Materials/Consumables,08/17/20,STEELCRAFT FABRICATIONS,950,Sep-20
EREWASH BOROUGH COUNCIL,220816,Corporate Health and Safety,Water Testing (Legionella),08/28/20,STERILIZING SERVICES LTD,1391.2,Sep-20
EREWASH BOROUGH COUNCIL,220850,Household/Residual Waste Collection,Hire Charges,07/03/20,SUEZ RECYCLING AND RECOVERY UK LTD,7855,Sep-20
EREWASH BOROUGH COUNCIL,220850,Household/Residual Waste Collection,Hire Charges,07/03/20,SUEZ RECYCLING AND RECOVERY UK LTD,8945,Sep-20
EREWASH BOROUGH COUNCIL,220802,Green Space,Contracted Services,08/31/20,T H HEATH  CONTRACTS  LTD,697.59,Sep-20
EREWASH BOROUGH COUNCIL,220801,Green Space,Contracted Services,08/31/20,T H HEATH  CONTRACTS  LTD,1653.6,Sep-20
EREWASH BOROUGH COUNCIL,220797,Green Space,Contracted Services,08/31/20,T H HEATH  CONTRACTS  LTD,1814.11,Sep-20
EREWASH BOROUGH COUNCIL,220798,Green Space,Contracted Services,08/31/20,T H HEATH  CONTRACTS  LTD,5266.64,Sep-20
EREWASH BOROUGH COUNCIL,220379,Household/Residual Waste Collection,Repairs and Maintenance,08/17/20,T P HOPWELL (BIRMINGHAM) LTD,619.82,Sep-20
EREWASH BOROUGH COUNCIL,220906,Commissioned Projects,Fees Costs and Expenses,09/08/20,TECHNOGYM UK LTD,1080,Sep-20
EREWASH BOROUGH COUNCIL,220905,Commissioned Projects,Fees Costs and Expenses,09/08/20,TECHNOGYM UK LTD,1400,Sep-20
EREWASH BOROUGH COUNCIL,220479,Property and Estates,Alarms Reactive Maintenance,08/11/20,TECSERV UK,379,Sep-20
EREWASH BOROUGH COUNCIL,220878,Property and Estates,Alarms Planned Maintenence,09/07/20,TECSERV UK,937.67,Sep-20
EREWASH BOROUGH COUNCIL,220480,Property and Estates,Alarms Planned Maintenence,08/11/20,TECSERV UK,937.67,Sep-20
EREWASH BOROUGH COUNCIL,220795,ICT Support Services,Telephones,09/01/20,TELEPHONE TECHNOLOGY LTD,210,Sep-20
EREWASH BOROUGH COUNCIL,220693,Balance Sheet,Fuel Store,08/21/20,TENNANTS DISTRIBUTION LTD,340,Sep-20
EREWASH BOROUGH COUNCIL,220354,Household/Residual Waste Collection,Repairs and Maintenance,08/11/20,TERBERG MATEC UK,306.48,Sep-20
EREWASH BOROUGH COUNCIL,220382,Kerbside Dry Recycling Collection,Repairs and Maintenance,08/17/20,TERBERG MATEC UK,322.92,Sep-20
EREWASH BOROUGH COUNCIL,220836,Household/Residual Waste Collection,Repairs and Maintenance,09/03/20,TERBERG MATEC UK,409.34,Sep-20
EREWASH BOROUGH COUNCIL,220740,Kerbside Dry Recycling Collection,Repairs and Maintenance,09/03/20,TERBERG MATEC UK,811.58,Sep-20
EREWASH BOROUGH COUNCIL,220701,Household/Residual Waste Collection,Repairs and Maintenance,08/25/20,TERBERG MATEC UK,2155.99,Sep-20
EREWASH BOROUGH COUNCIL,220735,Balance Sheet,COVID19 Discretionary Business Grants,09/04/20,TFS PROPERTY COMPANY,4200,Sep-20
EREWASH BOROUGH COUNCIL,221221,Homelessness,Temporary Accommodation,08/03/20,THE CLARENCE HOTEL,350,Sep-20
EREWASH BOROUGH COUNCIL,220853,Green Space,Materials/Consumables,07/14/20,THE HELPING HAND COMPANY,230.6,Sep-20
EREWASH BOROUGH COUNCIL,221192,Green Space,Fuel,09/06/20,THE RIGHT FUELCARD COMPANY LTD,261.55,Sep-20
EREWASH BOROUGH COUNCIL,220912,Green Space,Fuel,08/30/20,THE RIGHT FUELCARD COMPANY LTD,289.98,Sep-20
EREWASH BOROUGH COUNCIL,221194,Green Space,Fuel,09/20/20,THE RIGHT FUELCARD COMPANY LTD,305.26,Sep-20
EREWASH BOROUGH COUNCIL,221193,Green Space,Fuel,09/13/20,THE RIGHT FUELCARD COMPANY LTD,308.56,Sep-20
EREWASH BOROUGH COUNCIL,220913,Green Space,Fuel,08/23/20,THE RIGHT FUELCARD COMPANY LTD,327.53,Sep-20
EREWASH BOROUGH COUNCIL,220944,Kerbside Dry Recycling Collection,Agency Staff,08/26/20,THORN BAKER LIMITED,787.81,Sep-20
EREWASH BOROUGH COUNCIL,220937,Kerbside Dry Recycling Collection,Agency Staff,08/19/20,THORN BAKER LIMITED,868.81,Sep-20
EREWASH BOROUGH COUNCIL,220944,Household/Residual Waste Collection,Agency Staff,08/26/20,THORN BAKER LIMITED,1181.72,Sep-20
EREWASH BOROUGH COUNCIL,220937,Household/Residual Waste Collection,Agency Staff,08/19/20,THORN BAKER LIMITED,1303.22,Sep-20
EREWASH BOROUGH COUNCIL,220205,Trees Hedges and Local Nature Reserves,Contracted Services,08/10/20,TOM RICHARDS TREE SERVICES,750,Sep-20
EREWASH BOROUGH COUNCIL,220424,Public Clocks,Electricity,08/17/20,TOTAL GAS & POWER LTD,18.79,Sep-20
EREWASH BOROUGH COUNCIL,220424,Belvoir Close Maintenance,Electricity,08/17/20,TOTAL GAS & POWER LTD,23.56,Sep-20
EREWASH BOROUGH COUNCIL,220424,Civic Accommodation - Long Eaton,Electricity,08/17/20,TOTAL GAS & POWER LTD,26.24,Sep-20
EREWASH BOROUGH COUNCIL,220424,Watercourse Maintenance,Electricity,08/17/20,TOTAL GAS & POWER LTD,34.65,Sep-20
EREWASH BOROUGH COUNCIL,220424,Shopmobility - Ilkeston,Electricity,08/17/20,TOTAL GAS & POWER LTD,39.02,Sep-20
EREWASH BOROUGH COUNCIL,220424,Long Eaton Market,Electricity,08/17/20,TOTAL GAS & POWER LTD,44.34,Sep-20
EREWASH BOROUGH COUNCIL,220424,Bridge Arches - Long Eaton,Electricity,08/17/20,TOTAL GAS & POWER LTD,45.54,Sep-20
EREWASH BOROUGH COUNCIL,220424,Cemeteries,Electricity,08/17/20,TOTAL GAS & POWER LTD,50.83,Sep-20
EREWASH BOROUGH COUNCIL,220424,Cotmanhay Pavilion,Electricity,08/17/20,TOTAL GAS & POWER LTD,59.87,Sep-20
EREWASH BOROUGH COUNCIL,220929,Abbotsford Community Centre,Gas,09/10/20,TOTAL GAS & POWER LTD,60.23,Sep-20
EREWASH BOROUGH COUNCIL,220425,Abbotsford Community Centre,Gas,08/11/20,TOTAL GAS & POWER LTD,61.67,Sep-20
EREWASH BOROUGH COUNCIL,220929,Erewash Museum,Gas,09/10/20,TOTAL GAS & POWER LTD,69.24,Sep-20
EREWASH BOROUGH COUNCIL,220425,Erewash Museum,Gas,08/11/20,TOTAL GAS & POWER LTD,85.82,Sep-20
EREWASH BOROUGH COUNCIL,220425,Bridge House - Long Eaton,Gas,08/11/20,TOTAL GAS & POWER LTD,86.16,Sep-20
EREWASH BOROUGH COUNCIL,220929,Bridge House - Long Eaton,Gas,09/10/20,TOTAL GAS & POWER LTD,89.71,Sep-20
EREWASH BOROUGH COUNCIL,220929,Merlin Way Depot - Ilkeston,Gas,09/10/20,TOTAL GAS & POWER LTD,102.67,Sep-20
EREWASH BOROUGH COUNCIL,220425,Merlin Way Depot - Ilkeston,Gas,08/11/20,TOTAL GAS & POWER LTD,122.85,Sep-20
EREWASH BOROUGH COUNCIL,220423,Long Eaton Market,Electricity,08/17/20,TOTAL GAS & POWER LTD,138.59,Sep-20
EREWASH BOROUGH COUNCIL,220929,Rutland Sports Park,Gas,09/10/20,TOTAL GAS & POWER LTD,155.71,Sep-20
EREWASH BOROUGH COUNCIL,220425,Rutland Sports Park,Gas,08/11/20,TOTAL GAS & POWER LTD,159.84,Sep-20
EREWASH BOROUGH COUNCIL,220424,Public Conveniences,Electricity,08/17/20,TOTAL GAS & POWER LTD,161.59,Sep-20
EREWASH BOROUGH COUNCIL,220423,Sandiacre Friesland Sports Centre,Electricity,08/17/20,TOTAL GAS & POWER LTD,177.73,Sep-20
EREWASH BOROUGH COUNCIL,220929,Civic Accommodation - Long Eaton,Gas,09/10/20,TOTAL GAS & POWER LTD,178.25,Sep-20
EREWASH BOROUGH COUNCIL,220425,Civic Accommodation - Long Eaton,Gas,08/11/20,TOTAL GAS & POWER LTD,186.71,Sep-20
EREWASH BOROUGH COUNCIL,220424,Shopmobility - Long Eaton,Electricity,08/17/20,TOTAL GAS & POWER LTD,213.46,Sep-20
EREWASH BOROUGH COUNCIL,220424,CCTV - Ilkeston and Long Eaton,Electricity,08/17/20,TOTAL GAS & POWER LTD,314.89,Sep-20
EREWASH BOROUGH COUNCIL,220424,Erewash Museum,Electricity,08/17/20,TOTAL GAS & POWER LTD,316.3,Sep-20
EREWASH BOROUGH COUNCIL,220929,Green Space,Gas,09/10/20,TOTAL GAS & POWER LTD,378.18,Sep-20
EREWASH BOROUGH COUNCIL,220425,Green Space,Gas,08/11/20,TOTAL GAS & POWER LTD,409.05,Sep-20
EREWASH BOROUGH COUNCIL,220929,Civic Accommodation - Ilkeston,Gas,09/10/20,TOTAL GAS & POWER LTD,505.13,Sep-20
EREWASH BOROUGH COUNCIL,220425,Civic Accommodation - Ilkeston,Gas,08/11/20,TOTAL GAS & POWER LTD,561.44,Sep-20
EREWASH BOROUGH COUNCIL,220424,Ilkeston Market,Electricity,08/17/20,TOTAL GAS & POWER LTD,611.75,Sep-20
EREWASH BOROUGH COUNCIL,220424,Car Parking,Electricity,08/17/20,TOTAL GAS & POWER LTD,635.76,Sep-20
EREWASH BOROUGH COUNCIL,220423,Green Space,Electricity,08/17/20,TOTAL GAS & POWER LTD,698.43,Sep-20
EREWASH BOROUGH COUNCIL,220423,Civic Accommodation - Ilkeston,Electricity,08/17/20,TOTAL GAS & POWER LTD,1161.13,Sep-20
EREWASH BOROUGH COUNCIL,220423,Merlin Way Depot - Ilkeston,Electricity,08/17/20,TOTAL GAS & POWER LTD,1177.76,Sep-20
EREWASH BOROUGH COUNCIL,220423,Civic Accommodation - Long Eaton,Electricity,08/17/20,TOTAL GAS & POWER LTD,1432.47,Sep-20
EREWASH BOROUGH COUNCIL,220424,Green Space,Electricity,08/17/20,TOTAL GAS & POWER LTD,1889.4,Sep-20
EREWASH BOROUGH COUNCIL,220786,Play Areas,Materials/Consumables,08/28/20,TRADE PARTNERS INTERNATIONAL LTD,640,Sep-20
EREWASH BOROUGH COUNCIL,220843,Green Space,Materials/Consumables,08/27/20,TUDOR ENVIRONMENTAL,651.75,Sep-20
EREWASH BOROUGH COUNCIL,221029,Homelessness,Temporary Accommodation,09/05/20,TUDOR LODGE HOTEL,291.67,Sep-20
EREWASH BOROUGH COUNCIL,221028,Homelessness,Temporary Accommodation,09/15/20,TUDOR LODGE HOTEL,291.67,Sep-20
EREWASH BOROUGH COUNCIL,220766,Homelessness,Temporary Accommodation,09/02/20,TUDOR LODGE HOTEL,291.67,Sep-20
EREWASH BOROUGH COUNCIL,221159,Homelessness,Homelessness-Lease Properties,09/29/20,TUNTUM HOUSING ASSOCIATION.,1238.25,Sep-20
EREWASH BOROUGH COUNCIL,220778,Leisure Contract,Rent,09/02/20,TWO COUNTIES TRUST T/A FRIESLAND SCHOOL,28000,Sep-20
EREWASH BOROUGH COUNCIL,220783,Kerbside Dry Recycling Collection,Bins,08/25/20,UK CONTAINER MAINTENANCE LTD,484.8,Sep-20
EREWASH BOROUGH COUNCIL,220783,Trade Waste,Bins,08/25/20,UK CONTAINER MAINTENANCE LTD,1047.2,Sep-20
EREWASH BOROUGH COUNCIL,221072,Payments,Commission,09/23/20,UNISON,-7.28,Sep-20
EREWASH BOROUGH COUNCIL,221072,Balance Sheet,Payroll Collection A/c - Trade Union Subscriptions,09/23/20,UNISON,485.4,Sep-20
EREWASH BOROUGH COUNCIL,220819,Communications,General Publicity and Promotion,08/28/20,WALSTEAD PETERBOROUGH LIMITED,4374,Sep-20
EREWASH BOROUGH COUNCIL,220981,Green Space,Materials/Consumables,05/28/20,WARD RECYCLING,338.4,Sep-20
EREWASH BOROUGH COUNCIL,220979,Green Space,Materials/Consumables,07/31/20,WARD RECYCLING,446.8,Sep-20
EREWASH BOROUGH COUNCIL,220980,Green Space,Materials/Consumables,07/31/20,WARD RECYCLING,523.8,Sep-20
EREWASH BOROUGH COUNCIL,221042,Green Space,Materials/Consumables,09/22/20,WEPACK LTD,396,Sep-20
EREWASH BOROUGH COUNCIL,221149,Parish Council Concurrent Functions,West Hallam - Precept,09/28/20,WEST HALLAM PARISH COUNCIL,3476,Sep-20
EREWASH BOROUGH COUNCIL,221149,Parish Precepts,West Hallam - Precept,09/28/20,WEST HALLAM PARISH COUNCIL,9945,Sep-20
EREWASH BOROUGH COUNCIL,221047,Council Tax Collection,Fees Costs and Expenses,09/10/20,WILKIN CHAPMAN LLP,292.5,Sep-20
EREWASH BOROUGH COUNCIL,220959,Building Control - Fee Earning,Consultants Fees,09/02/20,WILLIAM MAY DEVELOPMENTS LTD,946,Sep-20
EREWASH BOROUGH COUNCIL,220934,Kerbside Dry Recycling Collection,Agency Staff,08/08/20,WORKCHAIN LTD,934.62,Sep-20
EREWASH BOROUGH COUNCIL,220933,Kerbside Dry Recycling Collection,Agency Staff,08/15/20,WORKCHAIN LTD,960.08,Sep-20
EREWASH BOROUGH COUNCIL,220935,Kerbside Dry Recycling Collection,Agency Staff,08/01/20,WORKCHAIN LTD,1029.12,Sep-20
EREWASH BOROUGH COUNCIL,220934,Household/Residual Waste Collection,Agency Staff,08/08/20,WORKCHAIN LTD,1401.93,Sep-20
EREWASH BOROUGH COUNCIL,220933,Household/Residual Waste Collection,Agency Staff,08/15/20,WORKCHAIN LTD,1440.13,Sep-20
EREWASH BOROUGH COUNCIL,220935,Household/Residual Waste Collection,Agency Staff,08/01/20,WORKCHAIN LTD,1543.68,Sep-20
EREWASH BOROUGH COUNCIL,220835,Transport Trading Account,Software Licences,09/02/20,WURTH UK LIMITED,905,Sep-20
EREWASH BOROUGH COUNCIL,220734,Balance Sheet,COVID19 Discretionary Business Grants,09/04/20,XEIAD LTD,10000,Sep-20
EREWASH BOROUGH COUNCIL,220482,ICT Support Services,Data Lines,08/14/20,ZEN INTERNET LIMITED,2277.48,Sep-20
